Cogmind - Beta 13 *** ADVENTURER MODE // 2024.04.11 @ 12:01:24 Player: Asterix Result: Destroyed by P-60 Hacker with Shock Rifle Performance ------------- Evolutions (3) 1500 Regions Visited (6) 1200 Robots Destroyed (28) 140 Value Destroyed (706) 706 Prototype IDs (23) 460 Alien Tech Used (0) 0 Bonus (335) 335 TOTAL SCORE: 4341 Bonus ------- Follower Combat Kills 35 Aligned with FarCom 300 Cogmind --------- Core Integrity 0/700 Matter 300/300 Energy 100/100 System Corruption 6% Temperature Cool (0) Movement Core (50) Location -7/Factory Parts ------- > --- POWER (2) -------- (None) > --- PROPULSION (4) --- (None) > --- UTILITY (3) ------ (None) > --- WEAPON (4) ------- (None) > --- INVENTORY (5) ---- Airjet Improved Sensor Array Improved Melee Analysis Suite Transmission Jammer Peak State ------------ > --- POWER ------------ Deuterium Engine Light Nuclear Core > --- PROPULSION ------- Gravmag System Gravmag System Gravmag System Gravmag System > --- UTILITY ---------- Advanced Visual Processing Unit Improved Sensor Array Improved Signal Interpreter > --- WEAPON ----------- Light Assault Rifle Improved Datajack Field Lobotomy Kit > --- INVENTORY -------- Airjet Flight Unit Improved Signal Interpreter Improved Medium Armor Plating Shotgun [Rating: 46] Favorites ----------- Power Ion Engine Engine Ion Engine Power Core Light Nuclear Core Propulsion Light Treads Treads Light Treads Hover Unit Airjet Flight Unit Flight Unit Utility Improved Heat Sink Device Improved Heat Sink Storage High-capacity Storage Unit Processor Improved Signal Interpreter Protection Improved Medium Armor Plating Weapon Light Assault Rifle Ballistic Gun Light Assault Rifle Special Weapon Field Lobotomy Kit Special Melee Weapon Improved Datajack Build | -11 -10 -10 -10 -9 -8 -7 ------- Run | Yrd Mat Min Exi Min Mat Fac Slots Evolved 6 | . . . . . 4 2 Power 1 | . . . . . . 1 Propulsion 2 | . . . . . 2 . Utility 1 | . . . . . . 1 Weapon 2 | . . . . . 2 . Parts Attached 55 | 6 1 5 1 7 16 19 Power 4 | 1 . . . 1 1 1 Engine 3 | 1 . . . 1 1 . Core 1 | . . . . . . 1 Reactor . | . . . . . . . Propulsion 22 | 2 . . . 4 6 10 Treads 6 | 2 . . . 2 2 . Leg . | . . . . . . . Wheel . | . . . . . . . Hover 13 | . . . . . 4 9 Flight 3 | . . . . 2 . 1 Utility 19 | 1 1 5 1 1 5 5 Device 8 | . . 2 . . 3 3 Storage 7 | 1 1 3 1 1 . . Processor 2 | . . . . . 1 1 Hackware . | . . . . . . . Protection 2 | . . . . . 1 1 Artifact . | . . . . . . . Weapon 10 | 2 . . . 1 4 3 Energy Gun . | . . . . . . . Energy Cannon . | . . . . . . . Ballistic Gun 6 | 2 . . . 1 3 . Ballistic Cannon . | . . . . . . . Launcher . | . . . . . . . Special Weapon 2 | . . . . . 1 1 Impact Weapon . | . . . . . . . Slashing Weapon . | . . . . . . . Piercing Weapon . | . . . . . . . Special Melee Weapon 2 | . . . . . . 2 Unidentified Prototypes . | . . . . . . . Parts Lost 11 | . . . . 2 1 8 Power 2 | . . . . . . 2 Propulsion 1 | . . . . 1 . . Utility 4 | . . . . 1 . 3 Weapon 4 | . . . . . 1 3 Highest Loss Streak 5 | . . . . 2 1 5 To Critical Strikes . | . . . . . . . Average Slot Usage (%) 82 | . 85 99 100 74 87 56 Engine 9 | . 14 14 14 14 9 2 Treads 16 | . 28 28 28 3 21 . Hover 6 | . . . . . 4 18 Flight 1 | . . . . 15 . . Device 9 | . . 13 14 8 8 5 Storage 6 | . 14 14 14 3 . . Processor 5 | . . . . . 8 13 Ballistic Gun 22 | . 28 28 28 28 35 5 Special Melee Weapon 1 | . . . . . . 3 Naked Turns 12 | . . . . . . 12 Heaviest Build 49 | 13 13 14 49 49 24 29 Greatest Support 83 | 40 40 40 40 40 83 36 Greatest Overweight (x) 16 | . . . 1 16 5 8 Average Overweight (x) . | . . . . . . . Largest Inventory Capacity 20 | 8 8 8 20 20 5 5 Average Capacity 8 | 6 6 5 15 8 5 5 Most Carried 8 | 5 1 5 6 8 5 5 Average Carried 4 | . . 3 5 4 4 3 Final Capacity 20 | 8 5 8 20 5 5 5 Final Carried 6 | . . 5 6 5 5 4 Class Distribution -------------------- 68% | Mutant 13% | Scout 13% | Skirmisher 3% | Scavenger-Mutant Dominant Class ---------------- Mutant | -10/Materials Mutant | -10/Mines Mutant | -10/Exiles Mutant | -9/Mines Skirmisher | -8/Materials Mutant | -7/Factory Resources | -11 -10 -10 -10 -9 -8 -7 ----------- Run | Yrd Mat Min Exi Min Mat Fac Matter Collected 1121 | 276 . 320 . 119 196 210 Remotely . | . . . . . . . Salvage Created 1232 | 78 . 547 . 292 214 101 Parts 55 | 1 . 23 . 15 11 5 Haulers Intercepted . | . . . . . . . Recyclers Shooed 2 | . . . . 1 . 1 Parts Field Recycled . | . . . . . . . Retrieved Matter . | . . . . . . . Parts Self-Destructed . | . . . . . . . Prevented . | . . . . . . . Kills | -11 -10 -10 -10 -9 -8 -7 ------- Run | Yrd Mat Min Exi Min Mat Fac Combat Hostiles Destroyed 20 | . . 9 . 5 3 3 Guns 20 | . . 9 . 5 3 3 Classes Destroyed 6 | 1 . 2 . . 2 1 Tunneler 1 | . . . . . 1 . Recycler 7 | 1 . 3 . 2 1 . Swarmer 8 | . . 3 . 3 . 2 Grunt 10 | . . 6 . 2 2 . Sentry 1 | . . . . . 1 . Programmer 1 | . . . . . . 1 Best Kill Streak 3 | 1 . 3 . 3 3 2 Combat Bots Only 3 | . . 3 . 3 2 2 Max Kills in Single Turn 2 | 1 . 1 . 2 1 1 Gunslinging 1 | . . . . 1 . . Exploded . | . . . . . . . Melee . | . . . . . . . Uniques/NPCs Destroyed . | . . . . . . . Combat | -11 -10 -10 -10 -9 -8 -7 -------- Run | Yrd Mat Min Exi Min Mat Fac Hostile Shots Fired 238 | . . 47 . 13 29 149 Missed 72 | . . 10 . 1 10 51 Damage Taken 1896 | . . 334 . 104 237 1221 Core 830 | . . 68 . 32 27 703 Absorbed by Shields . | . . . . . . . Ignored by Resistances 510 | . . 99 . 31 64 316 Core Remaining (%) 85 | 100 . . . 60 95 . Volleys Fired 91 | 4 1 39 . 15 8 24 Largest 4 | 2 2 2 . 2 4 1 Hottest 88 | 40 40 40 . 40 88 20 Shots Fired 174 | 8 2 78 . 30 32 24 Gun 173 | 8 2 78 . 30 32 23 Cannon . | . . . . . . . Launcher . | . . . . . . . Special 1 | . . . . . . 1 Kinetic 173 | 8 2 78 . 30 32 23 Thermal . | . . . . . . . Explosive . | . . . . . . . Electromagnetic . | . . . . . . . Robot Hit Streak 31 | 8 9 27 . 31 21 18 Robot Miss Streak 2 | . 1 2 . 1 2 1 Penetration Max . | . . . . . . . Secondary Targets 2 | . . . . 2 . . Max Gunslinging Chain 1 | . . . . 1 . . Shots Hit Robots 150 | 8 1 58 . 27 25 31 Core Hits 74 | 2 . 24 . 14 12 22 Critical Kills . | . . . . . . . Critical Parts Destroyed . | . . . . . . . Critical Strikes . | . . . . . . . Melee Attacks 10 | . . . . . . 10 Impact . | . . . . . . . Slashing . | . . . . . . . Piercing . | . . . . . . . Sneak Attacks 4 | . . . . . . 4 Combat Hostiles . | . . . . . . . Follow-up Attacks . | . . . . . . . Damage Inflicted 1596 | 85 11 613 . 303 294 290 Guns 1469 | 85 11 613 . 295 284 181 Cannons . | . . . . . . . Explosions . | . . . . . . . Melee . | . . . . . . . Ramming 127 | . . . . 8 10 109 Kinetic 1469 | 85 11 613 . 295 284 181 Thermal . | . . . . . . . Explosive . | . . . . . . . Electromagnetic . | . . . . . . . Impact . | . . . . . . . Slashing . | . . . . . . . Piercing . | . . . . . . . Highest Corruption 6 | . . . . . 3 6 Average Corruption 3 | . . . . . 3 3 Corruption Purged . | . . . . . . . Corruption Blocked . | . . . . . . . Effects 1 | . . . . . 1 . Matter Fused 1 | . . . . . 1 . Overload Shots . | . . . . . . . Overflow Damage . | . . . . . . . Projectiles . | . . . . . . . Explosions . | . . . . . . . Melee . | . . . . . . . Knockbacks 3 | . . . . . . 3 Impact 3 | . . . . . . 3 Kinetic . | . . . . . . . Secondary . | . . . . . . . Self-Inflicted Damage 59 | . . . . 4 5 50 Shots . | . . . . . . . Rammed 33 | . . . . 1 1 31 Targets Rammed 34 | . . . . 1 2 31 Kicked . | . . . . . . . Crushed 1 | . . . . . 1 . Highest Temperature 112 | . . 18 . 11 112 6 Average Temperature 27 | . . 12 . 3 49 3 Received Heat Transfer 612 | . . 162 . 54 189 207 Siege Activations . | . . . . . . . Robots Corrupted . | . . . . . . . Combat Hostiles . | . . . . . . . Parts Fried . | . . . . . . . Impact Corruptions . | . . . . . . . Robots Melted . | . . . . . . . Combat Hostiles . | . . . . . . . Parts Melted . | . . . . . . . Heat Transferred . | . . . . . . . Parts Sabotaged . | . . . . . . . Parts Stolen . | . . . . . . . Parts Stripped . | . . . . . . . Power Chain Reactions . | . . . . . . . Alert | -11 -10 -10 -10 -9 -8 -7 ------- Run | Yrd Mat Min Exi Min Mat Fac Peak Influence 244 | 5 2 244 . 175 126 172 Initial 57 | . 2 . . . 57 48 Average 91 | 1 2 162 . 120 66 86 Maximum Alert Level 1 | . . 1 . . . . Low Security (%) 93 | 100 100 59 . 100 100 100 Level 1 6 | . . 40 . . . . Level 2 . | . . . . . . . Level 3 . | . . . . . . . Level 4 . | . . . . . . . Level 5 . | . . . . . . . High Security . | . . . . . . . Max Security . | . . . . . . . Squads Dispatched 6 | . . . . . 2 4 Investigation 3 | . . . . . 1 2 Extermination 2 | . . . . . . 2 Reinforcement 1 | . . . . . 1 . Assault . | . . . . . . . Garrison . | . . . . . . . Intercept . | . . . . . . . Searches Triggered . | . . . . . . . Construction Impeded . | . . . . . . . Haulers Reinforced . | . . . . . . . Active Scanning Responses . | . . . . . . . Cargo Convoy Interrupts . | . . . . . . . Stealth | -11 -10 -10 -10 -9 -8 -7 --------- Run | Yrd Mat Min Exi Min Mat Fac Distress Signals 2 | . . . . . 2 . Communications Jammed . | . . . . . . . Distress Signals . | . . . . . . . Times Spotted 50 | . 1 9 . 6 12 22 Peak Tracking Total 7 | . 1 3 . 3 7 5 Tactical Retreats 7 | . . . . 1 1 5 Traps | -11 -10 -10 -10 -9 -8 -7 ------- Run | Yrd Mat Min Exi Min Mat Fac Traps Triggered . | . . . . . . . Indirectly . | . . . . . . . Trap Hack Attempts . | . . . . . . . Triggered . | . . . . . . . Disarmed . | . . . . . . . Reprogrammed . | . . . . . . . Reused 2 | . . . . 2 . . Traps Extracted . | . . . . . . . Installed 4 | . . . . 4 . . Triggered 3 | . . . . 2 . 1 Most Traps Carried 1 | . . . . 1 . . Machines | -11 -10 -10 -10 -9 -8 -7 ---------- Run | Yrd Mat Min Exi Min Mat Fac Machines Disabled 2 | . . 1 . . 1 . Max in Single Turn 1 | . . 1 . . 1 . Machines Repaired . | . . . . . . . Machines Dismantled . | . . . . . . . Machines Sabotaged . | . . . . . . . Overloaded Fab Kills . | . . . . . . . Hacking | -11 -10 -10 -10 -9 -8 -7 --------- Run | Yrd Mat Min Exi Min Mat Fac Machines Accessed 12 | . . . 5 . 1 6 Terminals 6 | . . . . . . 6 Fabricators . | . . . . . . . Repair Stations . | . . . . . . . Recycling Units . | . . . . . . . Scanalyzers 1 | . . . . . 1 . Garrison Access . | . . . . . . . Total Hacks 66 | . . . 50 . 3 13 Successful 58 | . . . 50 . 1 7 Failed 8 | . . . . . 2 6 Catastrophic 1 | . . . . . . 1 Database Lockouts . | . . . . . . . Manual 4 | . . . 4 . . . Terminals 13 | . . . . . . 13 Fabricators . | . . . . . . . Repair Stations . | . . . . . . . Recycling Units . | . . . . . . . Scanalyzers 3 | . . . . . 3 . Garrison Access . | . . . . . . . Terminal Hacks 57 | . . . 50 . . 7 Record 52 | . . . 49 . . 3 Open DSF 2 | . . . . . . 2 Alert Level 1 | . . . . . . 1 Hauler Manifests 1 | . . . . . . 1 Derelict Proto ID Bank 1 | . . . 1 . . . Fabricator Hacks . | . . . . . . . Repair Station Hacks . | . . . . . . . Recycling Unit Hacks . | . . . . . . . Scanalyzer 1 | . . . . . 1 . Insert Component 1 | . . . . . 1 . Garrison Access Hacks . | . . . . . . . Unauthorized Hacks . | . . . . . . . Terminals . | . . . . . . . Fabricators . | . . . . . . . Repair Stations . | . . . . . . . Recycling Units . | . . . . . . . Scanalyzers . | . . . . . . . Garrison Access . | . . . . . . . Data Cores Recovered . | . . . . . . . Used . | . . . . . . . Hacking Detections 6 | . . . . . 1 5 Full Trace Events 3 | . . . . . 1 2 Feedback Events . | . . . . . . . Feedback Blocked . | . . . . . . . Robot Schematics Acquired . | . . . . . . . Robots Built . | . . . . . . . Authchips . | . . . . . . . Time . | . . . . . . . Total Robot Build Rating . | . . . . . . . Part Schematics Acquired . | . . . . . . . Parts Built . | . . . . . . . Authchips . | . . . . . . . Time . | . . . . . . . Total Part Build Rating . | . . . . . . . Parts Repaired . | . . . . . . . Time . | . . . . . . . Parts Recycled . | . . . . . . . Recycled Matter . | . . . . . . . Retrieved Matter . | . . . . . . . Retrieved Components . | . . . . . . . Parts Scanalyzed 1 | . . . . . 1 . Part Schematics Acquired . | . . . . . . . Parts Damaged . | . . . . . . . Bothacking | -11 -10 -10 -10 -9 -8 -7 ------------ Run | Yrd Mat Min Exi Min Mat Fac Used RIF Installer . | . . . . . . . Robots Hacked 6 | . . . . . . 6 Non-combat 5 | . . . . . . 5 Combat 1 | . . . . . . 1 Robot Hacks Applied 7 | . . . . . . 7 parse_system 3 | . . . . . . 3 no_distress 1 | . . . . . . 1 find_chute 1 | . . . . . . 1 find_dsf 1 | . . . . . . 1 find_recycling 1 | . . . . . . 1 Relay Couplers Released 4 | . . . . . . 4 Programmers 4 | . . . . . . 4 Fabnet Peak Effective % . | . . . . . . . Robots Rewired . | . . . . . . . Allies Hacked . | . . . . . . . Hacks Repelled . | . . . . . . . Allies | -11 -10 -10 -10 -9 -8 -7 -------- Run | Yrd Mat Min Exi Min Mat Fac Total Allies 1 | . . . . . . 1 Largest Group 1 | . . . . . . 1 Highest-Rated Group 55 | . . . . . . 55 Highest-Rated Ally 55 | . . . . . . 55 Total Orders 1 | . . . . . . 1 AID 1 | . . . . . . 1 Ally Attacks 9 | . . . . . . 9 Total Damage 469 | . . . . . . 469 Kills 4 | . . . . . . 4 Allies Corrupted . | . . . . . . . Allies Melted . | . . . . . . . Field Lobotomies 1 | . . . . . . 1 Intel | -11 -10 -10 -10 -9 -8 -7 ------- Run | Yrd Mat Min Exi Min Mat Fac Robot Analysis Total . | . . . . . . . Derelict Logs Recovered 3 | . . 1 . 2 . . Drone Launches . | . . . . . . . Drone Recoveries . | . . . . . . . Exploration | -11 -10 -10 -10 -9 -8 -7 ------------- Run | Yrd Mat Min Exi Min Mat Fac Turns Passed 4014 | 70 140 423 1249 359 611 1162 Spaces Moved 2980 | 39 85 187 619 343 408 1299 Core 447 | 13 . . . 6 3 425 Treads 1223 | 26 85 187 619 23 283 . Legs . | . . . . . . . Wheels . | . . . . . . . Hover 996 | . . . . . 122 874 Flight 314 | . . . . 314 . . Fastest Speed 37 | 50 160 160 160 37 48 48 Average Speed 105 | 123 160 160 200 73 129 49 Slowest Speed 850 | 160 160 160 240 850 300 450 Overloaded Moves . | . . . . . . . Propulsion Burnouts . | . . . . . . . Robots Hopped 5 | . . . . 5 . . Cave-ins Triggered . | . . . . . . . Exploration Rate (%) 33 | 4 20 28 69 52 32 29 Regions Visited 6 Branch Regions 3 Pre-discovered Areas 1 | . . . 1 . . . Known Exits Taken 1 | . . . . . 1 . Unknown Exits Taken 5 | 1 1 1 1 1 . . Scrap Searched 2 | . . 1 . 1 . . Spaces Dug . | . . . . . . . Terrain Destroyed . | . . . . . . . Melee . | . . . . . . . Projectile . | . . . . . . . AOE . | . . . . . . . Terrain Rammed . | . . . . . . . Walls Destroyed . | . . . . . . . Machines Disabled . | . . . . . . . Actions | -11 -10 -10 -10 -9 -8 -7 --------- Run | Yrd Mat Min Exi Min Mat Fac Total 3717 | 54 88 241 627 422 478 1807 Wait 447 | . . . . 33 25 389 Move 2964 | 38 84 186 618 332 407 1299 Hop 5 | . . . . 5 . . Pick Up 45 | 6 1 7 2 11 9 9 Fast Attach 12 | . . 3 . 2 6 1 Attach 35 | 6 1 2 . 4 8 14 Detach 12 | . . . . . 2 10 Swap 8 | . . . 1 1 2 4 Drop 45 | . 1 4 1 14 9 16 Fire 91 | 4 1 39 . 15 8 24 Melee 10 | . . . . . . 10 Ram 33 | . . . . 1 1 31 Kick . | . . . . . . . Crush 1 | . . . . . 1 . Escape Stasis . | . . . . . . . Rewire 5 | . . . 5 . . . Trap 4 | . . . . 4 . . Miscellaneous . | . . . . . . . Route ------- -11/Scrapyard -10/Materials -10/Mines -10/Exiles (discovered 2 exits: [*Min x2]) -9/Mines -8/Materials (discovered 3 exits: *Fac x2 / Sto) -7/Factory History --------- Turn | Location | Event 9 | -11/Scrapyard | Discovered new exit (range 15) 71 | -11/Scrapyard | Entered Materials 134 | -10/Materials | Discovered new exit (range 6) 211 | -10/Materials | Entered Mines 302 | -10/Mines | Build established: Mutant 626 | -10/Mines | Deemed a non-threat by the Exiles lab entrance 626 | -10/Mines | Discovered new exit (range 5) 634 | -10/Mines | Entered Exiles 662 | -10/Exiles | Discovered new exit (range 15) 713 | -10/Exiles | Met 8R-AWN 746 | -10/Exiles | Met EX-HEX 814 | -10/Exiles | Met EX-BIN 838 | -10/Exiles | Aligned with FarCom system 839 | -10/Exiles | Given EX-Vault access code 937 | -10/Exiles | Opened EX-Vault 980 | -10/Exiles | Warned to stay clear of 0b10 Research branches 1025 | -10/Exiles | Met EX-DEC 1081 | -10/Exiles | Learned location of Zion (-7) 1169 | -10/Exiles | Discovered new exit (range 10) 1436 | -10/Exiles | Found Field Lobotomy Kit 1883 | -10/Exiles | Left Exiles lab with Field Lobotomy Kit 1883 | -10/Exiles | Entered Mines 2017 | -9/Mines | Found a hidden stash of uninstalled traps 2057 | -9/Mines | Learned Materials stockpile data 2227 | -9/Mines | Discovered new exit (range 10) 2242 | -9/Mines | Entered Materials 2242 | -8/Materials | Evolved 4 slots: Propulsion x2, Weapon x2 2243 | -8/Materials | Identified exit to Factory 2243 | -8/Materials | Identified exit to Storage 2528 | -8/Materials | Build established: Skirmisher 2846 | -8/Materials | Discovered exit to Factory (range 15) 2853 | -8/Materials | Entered Factory 2853 | -7/Factory | Evolved 2 slots: Power x1, Utility x1 3060 | -7/Factory | Build established: Scout 3342 | -7/Factory | Assimilated P-70 Sage with FLK Orb 3376 | -7/Factory | Lost 5 parts (2p1u2w) 3617 | -7/Factory | Build established: Mutant 3951 | -7/Factory | Core integrity fell below 50% 4008 | -7/Factory | Core integrity fell below 20% 4015 | -7/Factory | Destroyed by P-60 Hacker with Shock Rifle Last Messages --------------- Slammed into P-60 Hacker. Slammed into U-05 Engineer. Slammed into P-60 Hacker. Destabilizing: System corrupted (+1). Slammed into P-60 Hacker. P-60 Hacker knocked back. Destabilizing: Core damaged (-21). Slammed into P-60 Hacker. P-60 Hacker knocked back. Slammed into P-60 Hacker. Adv. Visual Processing Unit destroyed. System corrupted by crushing effect (+3). Pressure Siphon disabled. Slammed into P-60 Hacker. Destabilizing: System corrupted (+2). Slammed into P-60 Hacker. Destabilizing: Core damaged (-21). Slammed into P-60 Hacker. Destabilizing: Core damaged (-21). Slammed into P-60 Hacker. Map ----- +----------------------------------------------------+ | ?????????????????????????????????????????????????? | | ?????????????????????????????????????????????????? | | ?????????????????????????????????????????????????? | | ?????????????????????????????????????????????????? | | ?????????????????????????????????????????????????? | | ?????????????????????????????????????????????????? | | ?????????????????????????????????????????????????? | | ?????????????????????????????????????????????????? | | ?????????????????????????????????????????????????? | | ?????????????????????????????????????????????????? | | ?????????????????????????????????????????????????? | | ?????????????????????????????????????????????????? | | ?????????????????????????????????????????????????? | | ?????????????????????????????????????????????????? | | ?????????????????????????????????????????????????? | | ?????????????????????????????????????????????????? | | ########?????????????????????????????????????????? | | # #?????????????????????????????????????????? | | # ! #?????????????????????????????????????????? | | # #####################?????????????????????? | | # + %% %#?????????????????????? | | # # ######## % % #?????????????????????? | | # # #??????#p % #?????????????????????? | | ######## #??????# % %!!!#?????????????????????? | | ???????# #??????# % %%!!!#?????????????????????? | | ???????# #??????# %% !@%#?????????????????????? | | ???????# #??????#%% %p #?????????????????????? | | ???????# #????###+## "%" #?????????????????????? | | ???????# #????# %%# """ #?????????????????????? | | ???????# #????# %+ """ #?????????????????????? | | ???????#+###### ! # """ #?????????????????????? | | ???????# """ # # #??????#+######+####### | | #####??# """ # + #??????# | | #??#! """ # #### #??????# | | #??# # #??# #??????# | | #??# ! # #??# #??????# | | #??# # #??# #??????# | | #######+########### ######## | | + % | | # ##+##############+######## | | # # ??????# # | | + + """ "????# # | | ###########+########### # """ """??# # | | ???# #????????# # """ """ ## # | | ???# "" #????????# # ## # | | ???# """ #????????# # ## # | | ???# S" #????????# ############ # | | ???# """ """ #????????+ + # | | ???# """ """ #????????# ###### # | | ???# """ #????????# #????# # | +----------------------------------------------------+ Best States ------------- Heat Dissipation 39 Energy Generation 23 Energy Capacity 335 Matter Stores 400 Matter Capacity 400 Sight Range 20 Robot Scan Range 15 Terrain Scan Density 10 ECM Strength 1 Jamming Range 12 Armor Coverage 225 Resistance: KI 20 Resistance: TH 20 Resistance: EX 20 Resistance: EM 20 Resistance: I 20 Resistance: S 20 Resistance: P 20 Evasion (%) 62 Recoil Reduction 4 Offensive Hacking 10 Item Schematics ----------------- None Robot Schematics ------------------ None Fabricated ------------ Nothing Alien Tech Used ----------------- None Achievements -------------- None Challenges ------------ None Game ------ Seed ProcessingNuclearMallet Manual? 0 Play Time 00:57:22 Cumulative 9.0 hours Start 2024.04.11 @ 11:02:10 End 2024.04.11 @ 12:01:24 Sessions 1 Manual Loads 0 Difficulty Adventurer Special Mode None Game No. 12 Rogue 9 Adventurer 3 Explorer 0 Win Type - Total 0 Types 0/0/0/0/0/0/0/0/0 Lore% 16 Gallery% 14 Achievement% 16 Wizard Run 0 Options --------- Layout 1 ASCII 0 Keyboard 0 Movement Mouse Keybinds 0 Fullscreen 1 Font 24/Smallcaps Map View 50x35 Zoom Use 0% Tactical HUD 0 Map Filters NONE Filters NONE Steam 1 RUN: d76809e9-8413-4b37-85b6-bef508cdcaea